Cogmind - Beta 14 @@@ ROGUE MODE // 2024.09.24 @ 18:07:08 Player: siona Result: Destroyed by WZ-5ZN(R) with Subdweller Beam Cannon Performance ------------- Evolutions (0) 0 Regions Visited (3) 600 Robots Destroyed (20) 100 Value Destroyed (438) 438 Prototype IDs (0) 0 Alien Tech Used (0) 0 Bonus (0) 0 TOTAL SCORE: 1138 Bonus ------- None Cogmind --------- Core Integrity 0/250 Matter 292/300 Energy 125/125 System Corruption 0% Temperature Cool (9) Movement Walking (190) Ox1 Location -10/Subcaves Parts ------- > --- POWER (1) -------- Light Ion Engine > --- PROPULSION (2) --- Aluminum Leg > --- UTILITY (2) ------ Large Storage Unit Weight Redist. System > --- WEAPON (2) ------- Small Laser Light Assault Rifle > --- INVENTORY (15) --- Wheel VTOL Module VTOL Module VTOL Module VTOL Module Heat Sink Small Storage Unit Weight Redist. System Core Shielding Peak State ------------ > --- POWER ------------ Light Ion Engine > --- PROPULSION ------- Light Treads Light Treads > --- UTILITY ---------- Large Storage Unit Core Shielding > --- WEAPON ----------- Medium Laser Light Assault Rifle > --- INVENTORY -------- Light Ion Engine Aluminum Leg Aluminum Leg Wheel VTOL Module VTOL Module VTOL Module VTOL Module Heat Sink Small Storage Unit Weight Redist. System Weight Redist. System Signal Interpreter Small Laser [Rating: 9] Favorites ----------- Power Light Ion Engine Engine Light Ion Engine Propulsion Light Treads Treads Light Treads Leg Aluminum Leg Utility Large Storage Unit Device Weight Redist. System Storage Large Storage Unit Processor Signal Interpreter Protection Core Shielding Weapon Light Assault Rifle Energy Gun Small Laser Ballistic Gun Light Assault Rifle Build | -11 -10 -10 -10 ------- Run | Yrd Mat Min Sub Slots Evolved . | . . . . Power . | . . . . Propulsion . | . . . . Utility . | . . . . Weapon . | . . . . Parts Attached 21 | 7 5 5 4 Power 2 | 1 . . 1 Engine 2 | 1 . . 1 Core . | . . . . Reactor . | . . . . Propulsion 7 | 2 2 1 2 Treads 4 | 2 2 . . Leg 3 | . . 1 2 Wheel . | . . . . Hover . | . . . . Flight . | . . . . Utility 5 | 1 2 1 1 Device 1 | . . . 1 Storage 2 | 1 1 . . Processor 1 | . . 1 . Hackware . | . . . . Protection 1 | . 1 . . Artifact . | . . . . Weapon 7 | 3 1 3 . Energy Gun 3 | 2 . 1 . Energy Cannon . | . . . . Ballistic Gun 4 | 1 1 2 . Ballistic Cannon . | . . . . Launcher . | . . . . Special Weapon . | . . . . Impact Weapon . | . . . . Slashing Weapon . | . . . . Piercing Weapon . | . . . . Special Melee Weapon . | . . . . Unidentified Prototypes . | . . . . Parts Lost 8 | . . 7 1 Power 1 | . . 1 . Propulsion 4 | . . 3 1 Utility . | . . . . Weapon 3 | . . 3 . Highest Loss Streak 4 | . . 4 1 To Critical Strikes . | . . . . Average Slot Usage (%) 81 | . 95 76 100 Engine 3 | . 14 . 14 Treads 15 | . 28 13 . Leg 5 | . . 6 28 Storage 14 | . 14 14 14 Processor 5 | . . 6 8 Protection 7 | . 9 7 . Energy Gun 6 | . 14 4 14 Ballistic Gun 20 | . 14 23 14 Peak Build Rating 9 | 6 9 9 9 Average Rating 7 | 4 7 7 8 On Entrance 5 | . 6 9 5 Naked Turns . | . . . . Heaviest Build 28 | 11 28 28 25 Greatest Support 40 | 40 40 40 26 Greatest Overweight (x) 7 | . . 7 1 Average Overweight (x) 1 | . . 2 . Largest Inventory Capacity 15 | 8 15 15 15 Average Capacity 14 | 7 12 15 15 Most Carried 15 | 3 15 15 12 Average Carried 12 | 1 10 13 9 Final Capacity 15 | 8 15 15 15 Final Carried 15 | 3 15 13 9 Class Distribution -------------------- 100% | Mutant Dominant Class ---------------- Mutant | -10/Materials Mutant | -10/Mines Mutant | -10/Subcaves Resources | -11 -10 -10 -10 ----------- Run | Yrd Mat Min Sub Matter Collected 526 | 215 153 128 30 Remotely . | . . . . Salvage Created 587 | . 389 198 . Parts 34 | . 22 12 . Haulers Intercepted 1 | . 1 . . Recyclers Shooed . | . . . . Parts Field Recycled . | . . . . Retrieved Matter . | . . . . Parts Self-Destructed . | . . . . Prevented . | . . . . Kills | -11 -10 -10 -10 ------- Run | Yrd Mat Min Sub Combat Hostiles Destroyed 15 | . 7 8 . Guns 15 | . 7 8 . Classes Destroyed 6 | . 4 2 . Worker 2 | . . 2 . Hauler 1 | . 1 . . Mechanic 1 | . 1 . . Watcher 1 | . 1 . . Swarmer 6 | . . 6 . Grunt 9 | . 7 2 . Best Kill Streak 3 | . 2 3 . Combat Bots Only 3 | . 2 3 . Max Kills in Single Turn 1 | . 1 1 . Gunslinging . | . . . . Exploded . | . . . . Melee . | . . . . Uniques/NPCs Destroyed . | . . . . Combat | -11 -10 -10 -10 -------- Run | Yrd Mat Min Sub Hostile Shots Fired 151 | . 33 107 11 Missed 38 | . 9 25 4 Damage Taken 1258 | . 288 779 191 Core 265 | . 18 145 102 Absorbed by Shields . | . . . . Redirected to Shielding 12 | . . 12 . Core Remaining (%) 100 | 100 . . . Volleys Fired 73 | . 36 34 3 Largest 2 | . 2 2 2 Hottest 70 | . 70 70 60 Shots Fired 140 | . 71 63 6 Gun 140 | . 71 63 6 Cannon . | . . . . Launcher . | . . . . Special . | . . . . Kinetic 93 | . 36 54 3 Thermal 47 | . 35 9 3 Explosive . | . . . . Electromagnetic . | . . . . Robot Hit Streak 13 | . 13 12 1 Robot Miss Streak 3 | . 3 3 1 Penetration Max . | . . . . Secondary Targets 1 | . . 1 . Max Gunslinging Chain 1 | . . 1 . Shots Hit Robots 84 | . 45 38 1 Core Hits 37 | . 23 14 . Critical Kills . | . . . . Critical Parts Destroyed 1 | . 1 . . Critical Strikes 2 | . 2 . . Burn 1 | . 1 . . Destroy 1 | . 1 . . Melee Attacks . | . . . . Impact . | . . . . Slashing . | . . . . Piercing . | . . . . Sneak Attacks . | . . . . Combat Hostiles . | . . . . Follow-up Attacks . | . . . . Damage Inflicted 920 | . 480 430 10 Guns 919 | . 480 429 10 Cannons . | . . . . Explosions . | . . . . Melee . | . . . . Ramming 1 | . . 1 . Kinetic 550 | . 193 347 10 Thermal 369 | . 287 82 . Explosive . | . . . . Electromagnetic . | . . . . Impact . | . . . . Slashing . | . . . . Piercing . | . . . . Highest Corruption . | . . . . Average Corruption . | . . . . Corruption Purged . | . . . . Corruption Blocked . | . . . . Overload Shots . | . . . . Overflow Damage . | . . . . Projectiles . | . . . . Explosions . | . . . . Melee . | . . . . Knockbacks . | . . . . Impact . | . . . . Kinetic . | . . . . Secondary . | . . . . Self-Inflicted Damage . | . . . . Shots . | . . . . Rammed 1 | . . 1 . Targets Rammed 1 | . . 1 . Kicked . | . . . . Crushed . | . . . . Highest Temperature 191 | . 191 55 . Average Temperature 53 | . 58 24 . Received Heat Transfer 414 | . 165 186 63 Siege Activations . | . . . . Robots Corrupted . | . . . . Combat Hostiles . | . . . . Parts Fried . | . . . . Impact Corruptions . | . . . . Robots Melted . | . . . . Combat Hostiles . | . . . . Parts Melted 4 | . 4 . . Heat Transferred 1136 | . 925 211 . Parts Sabotaged . | . . . . Parts Stolen . | . . . . Parts Stripped . | . . . . Power Chain Reactions . | . . . . Alert | -11 -10 -10 -10 ------- Run | Yrd Mat Min Sub Peak Influence 114 | . 114 84 . Initial 44 | . . 44 . Average 29 | . 70 20 . Maximum Alert Level . | . . . . Low Security (%) 100 | 100 100 100 . Level 1 . | . . . . Level 2 . | . . . . Level 3 . | . . . . Level 4 . | . . . . Level 5 . | . . . . High Security . | . . . . Max Security . | . . . . Squads Dispatched 1 | . 1 . . Investigation . | . . . . Extermination . | . . . . Reinforcement 1 | . 1 . . Assault . | . . . . Garrison . | . . . . Intercept . | . . . . Searches Triggered . | . . . . Construction Impeded . | . . . . Haulers Reinforced . | . . . . Active Scanning Responses . | . . . . Cargo Convoy Interrupts . | . . . . Stealth | -11 -10 -10 -10 --------- Run | Yrd Mat Min Sub Distress Signals 1 | . 1 . . Communications Jammed . | . . . . Distress Signals . | . . . . Times Spotted 24 | . 14 8 2 Peak Tracking Total 3 | . 2 3 2 Tactical Retreats 1 | . 1 . . Traps | -11 -10 -10 -10 ------- Run | Yrd Mat Min Sub Traps Triggered . | . . . . Indirectly . | . . . . Trap Hack Attempts . | . . . . Triggered . | . . . . Disarmed . | . . . . Reprogrammed . | . . . . Reused . | . . . . Traps Extracted . | . . . . Installed . | . . . . Triggered . | . . . . Machines | -11 -10 -10 -10 ---------- Run | Yrd Mat Min Sub Machines Disabled . | . . . . Max in Single Turn . | . . . . Machines Repaired . | . . . . Machines Dismantled . | . . . . Machines Sabotaged . | . . . . Overloaded Fab Kills . | . . . . Hacking | -11 -10 -10 -10 --------- Run | Yrd Mat Min Sub Machines Accessed 1 | . 1 . . Terminals 1 | . 1 . . Fabricators . | . . . . Repair Stations . | . . . . Recycling Units . | . . . . Scanalyzers . | . . . . Garrison Access . | . . . . Total Hacks 4 | . 4 . . Successful 2 | . 2 . . Failed 2 | . 2 . . Catastrophic . | . . . . Database Lockouts . | . . . . Manual . | . . . . Terminals 4 | . 4 . . Fabricators . | . . . . Repair Stations . | . . . . Recycling Units . | . . . . Scanalyzers . | . . . . Garrison Access . | . . . . Terminal Hacks 2 | . 2 . . Record 2 | . 2 . . Fabricator Hacks . | . . . . Repair Station Hacks . | . . . . Recycling Unit Hacks . | . . . . Scanalyzer . | . . . . Garrison Access Hacks . | . . . . Unauthorized Hacks . | . . . . Terminals . | . . . . Fabricators . | . . . . Repair Stations . | . . . . Recycling Units . | . . . . Scanalyzers . | . . . . Garrison Access . | . . . . Data Cores Recovered . | . . . . Used . | . . . . Hacking Detections 1 | . 1 . . Full Trace Events . | . . . . Feedback Events . | . . . . Feedback Blocked . | . . . . Robot Schematics Acquired . | . . . . Robots Built . | . . . . Authchips . | . . . . Time . | . . . . Total Robot Build Rating . | . . . . Part Schematics Acquired . | . . . . Parts Built . | . . . . Authchips . | . . . . Time . | . . . . Total Part Build Rating . | . . . . Parts Repaired . | . . . . Time . | . . . . Parts Recycled . | . . . . Recycled Matter . | . . . . Retrieved Matter . | . . . . Retrieved Components . | . . . . Parts Scanalyzed . | . . . . Part Schematics Acquired . | . . . . Parts Damaged . | . . . . Bothacking | -11 -10 -10 -10 ------------ Run | Yrd Mat Min Sub Used RIF Installer . | . . . . Robots Hacked . | . . . . Non-combat . | . . . . Combat . | . . . . Robot Hacks Applied . | . . . . Relay Couplers Released . | . . . . Fabnet Peak Effective % . | . . . . Robots Rewired . | . . . . Allies Hacked . | . . . . Hacks Repelled . | . . . . Allies | -11 -10 -10 -10 -------- Run | Yrd Mat Min Sub Total Allies . | . . . . Largest Group . | . . . . Highest-Rated Group . | . . . . Highest-Rated Ally . | . . . . Total Orders . | . . . . Ally Attacks . | . . . . Total Damage . | . . . . Kills . | . . . . Allies Corrupted . | . . . . Allies Melted . | . . . . Intel | -11 -10 -10 -10 ------- Run | Yrd Mat Min Sub Robot Analysis Total . | . . . . Derelict Logs Recovered 2 | . . 2 . Drone Launches . | . . . . Drone Recoveries . | . . . . Exploration | -11 -10 -10 -10 ------------- Run | Yrd Mat Min Sub Turns Passed 3399 | 113 661 2516 109 Spaces Moved 1364 | 61 323 923 57 Core 192 | 2 . 190 . Treads 723 | 59 323 341 . Legs 449 | . . 392 57 Wheels . | . . . . Hover . | . . . . Flight . | . . . . Fastest Speed 50 | 50 160 160 120 Average Speed 221 | 156 160 251 162 Slowest Speed 400 | 160 160 400 190 Overloaded Moves . | . . . . Propulsion Burnouts . | . . . . Robots Hopped . | . . . . Cave-ins Triggered . | . . . . Exploration Rate (%) 43 | 6 65 100 4 Regions Visited 3 Branch Regions 2 Pre-discovered Areas 1 | . . 1 . Known Exits Taken 1 | . . 1 . Unknown Exits Taken 2 | 1 1 . . Scrap Searched 1 | . . 1 . Spaces Dug . | . . . . Terrain Destroyed . | . . . . Melee . | . . . . Projectile . | . . . . AOE . | . . . . Terrain Rammed . | . . . . Walls Destroyed . | . . . . Machines Disabled . | . . . . Actions | -11 -10 -10 -10 --------- Run | Yrd Mat Min Sub Total 1608 | 76 403 1061 68 Wait 131 | 5 25 97 4 Move 1361 | 60 322 922 57 Hop . | . . . . Pick Up 17 | 4 12 1 . Fast Attach 6 | 5 . 1 . Attach 9 | 1 1 4 3 Detach 1 | . . 1 . Swap 6 | 1 4 . 1 Drop 3 | . 3 . . Fire 73 | . 36 34 3 Melee . | . . . . Ram . | . . . . Kick . | . . . . Crush 1 | . . 1 . Escape Stasis . | . . . . Rewire . | . . . . Trap . | . . . . Miscellaneous . | . . . . Route ------- -11/Scrapyard -10/Materials (discovered 3 exits: *Mat / [*Min x2]) -10/Mines (discovered 3 exits: *Mat x2 / *Sub) -10/Subcaves History --------- Turn | Location | Event 12 | -11/Scrapyard | Discovered new exit (range 15) 114 | -11/Scrapyard | Entered Materials 201 | -10/Materials | Discovered new exit (range 16) 305 | -10/Materials | Build established: Mutant 431 | -10/Materials | Discovered new exit (range 3) 433 | -10/Materials | Discovered new exit (range 7) 775 | -10/Materials | Entered Mines 1013 | -10/Mines | Learned location of 1 exit from Materials 1260 | -10/Mines | Found a hidden stash of uninstalled traps 1695 | -10/Mines | Learned location of Storage (-8) 2105 | -10/Mines | Discovered new exit (range 7) 2116 | -10/Mines | Discovered new exit (range 9) 2182 | -10/Mines | Identified exit to Materials 2523 | -10/Mines | Core integrity fell below 50% 2554 | -10/Mines | Lost 4 parts (2n2w) 3271 | -10/Mines | Discovered new exit (range 6) 3287 | -10/Mines | Identified exit to Subcaves 3291 | -10/Mines | Entered Subcaves 3397 | -10/Subcaves | Core integrity fell below 20% 3400 | -10/Subcaves | Destroyed by WZ-5ZN(R) with Subdweller Beam Cannon Last Messages --------------- 02356_ Acquired 13 matter. 02490_ Lgt. Treads destroyed. 02500_ Lgt. Assault Rifle destroyed. 02518_ Assault Rifle destroyed. 02520_ S-10 Pest destroyed. 02523_ Aluminum Leg destroyed. 02537_ S-10 Pest destroyed. 02539_ Acquired 3 matter. 02546_ Acquired Lgt. Assault Rifle. 03079_ Acquired 10 matter. 03271_ EXIT=FOUND 03287_ EXIT=IDENTIFIED: SUBCAVES LOCATION=SUBCAVES AMBIENT_HEAT=-10 GOAL=ESCAPE 03302_ Acquired 10 matter. 03304_ Acquired 15 matter. 03315_ Acquired 5 matter. 03361_ Discarded Signal Interpreter. 03400_ Aluminum Leg destroyed. Map ----- +----------------------------------------------------+ | ?????????????????????????????????????????????????? | | ?????????????????????????????????????????????????? | | ?????????????????????????????????????????????????? | | ?????????????????????????????????????????????????? | | ?????????????????????????????????????????????????? | | ?????????????????????????????????????????????????? | | ?????????????????????????????????????????????????? | | ?????????????????????????????????????????????????? | | ?????????????????????????????????????????????????? | | ?????????????????????????????????????????????????? | | ?????????????????????????????????????????????????? | | ????????????????????????????????##???????????????? | | ???????????????????????????????## #????##????????? | | ??????????????????????????"" ### #### #????????? | | ?????????????????????????"""" #????????? | | ????????????????????????? """ " ^ #?????????? | | ????????????????????????? #??# #??????????? | | ????????????????????????# #??###### ##?????????? | | ???????????????????????? ??????# #?####????? | | ???????????????????????"" ######## ### #????? | | ???????????????????????#"" ## #????? | | ????????????????????????#" ##### #????# | | ????????????????????????#""#????# #?#### | | ???????????????????????## R#????# ### # | | ???????????????????????# #???## | | ???????????????????????# @ #???# #" | | ??????????????????????#; #### ##### ####### | | ??????????????????????### R #???## ##?????### | | ????????????????????????##########????###????????? | | ?????????????????????????????????????????????????? | | ?????????????????????????????????????????????????? | | ?????????????????????????????????????????????????? | | ?????????????????????????????????????????????????? | | ?????????????????????????????????????????????????? | | ?????????????????????????????????????????????????? | | ?????????????????????????????????????????????????? | | ?????????????????????????????????????????????????? | | ?????????????????????????????????????????????????? | | ?????????????????????????????????????????????????? | | ?????????????????????????????????????????????????? | | ?????????????????????????????????????????????????? | | ?????????????????????????????????????????????????? | | ?????????????????????????????????????????????????? | | ?????????????????????????????????????????????????? | | ?????????????????????????????????????????????????? | | ?????????????????????????????????????????????????? | | ?????????????????????????????????????????????????? | | ?????????????????????????????????????????????????? | | ?????????????????????????????????????????????????? | | ?????????????????????????????????????????????????? | +----------------------------------------------------+ Best States ------------- Heat Dissipation 25 Energy Generation 10 Energy Capacity 125 Matter Stores 300 Matter Capacity 300 Sight Range 16 Terrain Scan Density 10 Additional Mass Support 6 Core Shielding 20 Evasion (%) 50 Recoil Reduction 2 Item Schematics ----------------- None Robot Schematics ------------------ None Fabricated ------------ Nothing Alien Tech Used ----------------- None Achievements -------------- None Challenges ------------ None Game ------ Seed MultinovaCarbideStabilizer Manual? 0 Play Time 00:14:18 Cumulative 13.8 hours Start 2024.09.24 @ 17:53:48 End 2024.09.24 @ 18:07:08 Sessions 1 Manual Loads 0 Difficulty Rogue Special Mode None Game No. 27 Rogue 26 Adventurer 1 Explorer 0 Win Type - Total 0 Types 0/0/0/0/0/0/0/0/0 Lore% 11 Gallery% 16 Achievement% 17 Wizard Run 0 Options --------- Layout 1 ASCII 0 Keyboard 0 Movement Mouse Keybinds 0 Fullscreen 1 Font 32/SmallcapsGlow Map View 50x35 Zoom Use 0% Tactical HUD 1 Map Filters NONE Filters NONE Steam 1 RUN: b3280bbb-5131-4821-8279-8ac015d3811b